fUSD/lending_fUSD_20250305
["ID","MTS","AMOUNT","RATE_DAILY","PERIOD"]
[355488124,1741200651271,-555.95,0.00011264,2]
[355488126,1741200651280,-500.0,0.00011264,2]
[355488128,1741200651290,-500.0,0.00011264,2]
[355488130,1741200651299,-720.32,0.00011264,2]
[355488132,1741200651308,-624.93,0.00011264,2]
[355488134,1741200651318,-920.5,0.00011264,2]
[355488136,1741200651328,-500.0,0.00011264,2]
[355488138,1741200651337,-500.0,0.00011264,2]
[355488140,1741200651347,-538.83,0.00011264,2]
[355488142,1741200651356,-47.981889,0.00011264,2]
[355488145,1741200651369,-452.018111,0.00011264,2]
[355488146,1741200651379,-500.0,0.00011264,2]
[355488149,1741200651390,-695.33,0.00011264,2]
[355488150,1741200651400,-671.72,0.00011264,2]
[355488152,1741200651409,-568.98,0.00011264,2]
[355488155,1741200651419,-500.0,0.00011264,2]
[355488156,1741200651428,-805.2,0.00011264,2]
[355488158,1741200651441,-544.91,0.00011264,2]
[355488160,1741200651450,-128.63885251,0.00011264,2]
[355488162,1741200651463,-1915.03356049,0.00011264,2]
[355488165,1741200651475,-514.837587,0.00011264,2]
[355488167,1741200651485,-1212.11,0.00011264,2]
[355488169,1741200651494,-629.44954816,0.00011264,2]
[355488171,1741200651504,-2294.8,0.00011264,2]
[355488173,1741200651513,-500.0,0.00011264,2]
[355488175,1741200651523,-714.11,0.00011264,2]
[355488177,1741200651533,-704.18,0.00011264,2]
[355488179,1741200651544,-500.0,0.00011264,2]
[355488181,1741200651557,-537.48,0.00011264,2]
[355488183,1741200651567,-835.63,0.00011264,2]
[355488185,1741200651577,-686.92,0.00011264,2]
[355488187,1741200651586,-762.74,0.00011264,2]
[355488189,1741200651595,-500.0,0.00011264,2]
[355488191,1741200651604,-902.69,0.00011264,2]
[355488193,1741200651613,-500.0,0.00011264,2]
[355488195,1741200651622,-649.22967699,0.00011264,2]
[355488197,1741200651631,-962.22,0.00011264,2]
[355488199,1741200651641,-624.94,0.00011264,2]
[355488201,1741200651650,-500.0,0.00011264,2]
[355488203,1741200651659,-1500.48,0.00011264,2]
[355488205,1741200651669,-947.51,0.00011264,2]
[355488206,1741200651678,-2091.47,0.00011264,2]
[355488209,1741200651689,-500.0,0.00011264,2]
[355488211,1741200651698,-631.47,0.00011264,2]
[355488213,1741200651708,-1021.13,0.00011264,2]
[355488215,1741200651717,-500.0,0.00011264,2]
[355488217,1741200651727,-575.42,0.00011264,2]
[355488219,1741200651736,-3292.57,0.00011264,2]
[355488221,1741200651745,-500.0,0.00011264,2]
[355488223,1741200651754,-3425.38,0.00011264,2]
[355488225,1741200651764,-1064.35,0.00011264,2]
[355488227,1741200651773,-581.29,0.00011264,2]
[355488229,1741200651782,-1360.07,0.00011264,2]
[355488231,1741200651792,-510.68,0.00011264,2]
[355488233,1741200651801,-7133.19,0.00011264,2]
[355488235,1741200651811,-1383.64778784,0.00011264,2]
[355488238,1741200651834,-1011.29850004,0.00011264,2]
[355488240,1741200651845,-890.57598,0.00011264,2]
[355488243,1741200651856,-485.61773212,0.00011264,2]
[355488245,1741200651865,-467.14508378,0.00011264,2]
[355488247,1741200651877,-569.94491622,0.00011264,2]
[355488249,1741200651886,-433.58620878,0.00011264,2]
[355488251,1741200651897,-192.38379122,0.00011264,2]
[355488253,1741200651907,-500.0,0.00011264,2]
[355488255,1741200651916,-225.75275378,0.00011264,2]
[355488257,1741200651927,-1006.68,0.00011264,2]
[355488259,1741200651938,-57.08724622,0.00011264,2]
[355488261,1741200651948,-873.27275378,0.00011264,2]
[355488263,1741200651959,-1073.5,0.00011264,2]
[355488266,1741200651971,-546.38440035,0.00011264,2]
[355488268,1741200651982,-498.77284587,0.00011264,2]
[355488270,1741200651992,-474.01275378,0.00011264,2]
[355488272,1741200652003,-96.87724622,0.00011264,2]
[355488274,1741200652012,-768.65,0.00011264,2]
[355488276,1741200652022,-255.61775378,0.00011264,2]
[355488278,1741200652033,-1128.8597477,0.00011264,2]
[355488281,1741200652044,-1980.21249852,0.00011264,2]
[355488283,1741200652055,-500.0,0.00011264,2]
[355488285,1741200652065,-955.19,0.00011264,2]
[355488287,1741200652075,-500.0,0.00011264,2]
[355488289,1741200652085,-826.75,0.00011264,2]
[355488291,1741200652094,-500.0,0.00011264,2]
[355488293,1741200652103,-878.06640563,0.00011264,2]
[355488401,1741200653273,-709.20359437,0.00011264,2]
[355488403,1741200653283,-620.57492167,0.00011264,2]
[355488405,1741200653293,-797.69,0.00011264,2]
[355488407,1741200653302,-1885.22,0.00011264,2]
[355488409,1741200653312,-626.99,0.00011264,2]
[355488411,1741200653321,-638.55118236,0.00011264,2]
[355488413,1741200653332,-733.98881764,0.00011264,2]
[355488415,1741200653342,-305.12466823,0.00011264,2]
[355488417,1741200653352,-1012.99,0.00011264,2]
[355488419,1741200653362,-1476.71,0.00011264,2]
[355488421,1741200653371,-3511.52,0.00011264,2]
[355488423,1741200653383,-500.0,0.00011264,2]
[355488425,1741200653393,-3690.92,0.00011264,2]
[355488428,1741200653404,-608.65,0.00011264,2]
[355488430,1741200653416,-566.55,0.00011264,2]
[355488432,1741200653426,-1107.53,0.00011264,2]
[355488434,1741200653437,-2876.69,0.00011264,2]
[355488436,1741200653447,-500.0,0.00011264,2]
[355488438,1741200653456,-500.0,0.00011264,2]
[355488440,1741200653467,-500.0,0.00011264,2]
[355488441,1741200653476,-500.0,0.00011264,2]
[355488444,1741200653486,-837.78,0.00011264,2]
[355488446,1741200653496,-544.14,0.00011264,2]
[355488448,1741200653505,-717.53,0.00011264,2]
[355488450,1741200653515,-13566.97817709,0.00011264,2]
[355488454,1741200653544,-882.46632352,0.00011264,2]
[355488456,1741200653556,-458.44251436,0.00011264,2]
[355488458,1741200653567,-735.915,0.00011264,2]
[355488460,1741200653579,-275.98042131,0.00011264,2]
[355488521,1741200654154,-504.01612889,0.0001099,2]
[355488523,1741200654163,-435.8168692,0.00010991,2]
[355488526,1741200654189,-500.0,0.00010989,2]
[355488528,1741200654198,-64.1831308,0.00010991,2]
[355488531,1741200654208,-615.30756372,0.00011264,2]
[355488532,1741200654218,-887.39,0.00011264,2]
[355488535,1741200654229,-734.79783324,0.00011264,2]
[355488987,1741200854584,3000.0,0.00014016,25]
[355488988,1741200941858,2000.0,0.00010209,2]
[355488989,1741200986547,603.79,0.00010181,2]
[355488990,1741200994861,234.37,0.00010181,2]
[355488991,1741201139432,1000.0,0.00010166,2]
[355488992,1741201142180,250.0,0.00010166,2]
[355488993,1741201290693,400.939218,0.00010181,2]
[355488994,1741201290716,212.370782,0.00010181,2]
[355488995,1741201314801,2000.0,0.00010133,2]
[355488996,1741201377594,160.35,0.00010181,2]
[355488999,1741201533711,7627.279218,0.00010057,2]
[355489000,1741201533732,5053.920782,0.00010057,2]
[355489001,1741201584317,1094.23,8.219e-05,2]
[355489010,1741201798521,-3989.72,0.00010284,2]
[355489011,1741201798542,-180.28,0.00010288,2]
[355489018,1741201831745,-0.49078562,0.00010288,2]
[355489020,1741201831755,-152.42,0.00010388,2]
[355489022,1741201831768,-163.91,0.0001044,2]
[355489024,1741201831778,-85.51517438,0.00010481,2]
[355489027,1741201831790,-1008.71482562,0.00010481,2]
[355489029,1741201831799,-152.42,0.00010526,2]
[355489031,1741201831810,-152.42,0.00010665,2]
[355489033,1741201831819,-152.42,0.00010803,2]
[355489035,1741201831829,-439.439,0.00010889,2]
[355489036,1741201831839,-318.45310179,0.0001089,2]
[355489038,1741201831851,-4341.44182259,0.00010891,2]
[355489041,1741201831862,-658.55817741,0.00010891,2]
[355489042,1741201831872,-205.68183759,0.000109,2]
[355489043,1741201831887,-274.58199992,0.000109,2]
[355489044,1741201831899,-599.99999999,0.000109,2]
[355489045,1741201831910,-681.63349006,0.000109,2]
[355489064,1741201832082,-25233.994454,0.000109,2]
[355489081,1741201837665,-3928.410936,0.000109,2]
[355489082,1741201837698,-331.52340789,0.000109,2]
[355489083,1741201837711,-454.80717628,0.000109,2]
[355489084,1741201837749,-3866.47624296,0.000109,2]
[355489085,1741201837760,-254.0,0.000109,2]
[355489086,1741201837774,-437.25499645,0.000109,2]
[355489087,1741201837809,-1007.42304003,0.000109,2]
[355489088,1741201837821,-12724.21241883,0.000109,2]
[355489089,1741201837830,-152.42,0.00010942,2]
[355489090,1741201837841,-150.0,0.00010959,2]
[355489091,1741201837851,-473.36758117,0.00010959,2]
[355489124,1741201839807,-725.91676573,0.00010959,2]
[355489125,1741201839820,-16143.21153182,0.00010959,2]
[355489126,1741201839832,-1049.4999999,0.00010959,2]
[355489127,1741201840138,-9931.56412138,0.00010959,2]
[355489128,1741201840148,-160.11697242,0.00010973,2]
[355489129,1741201840157,-160.2737214,0.00010973,2]
[355489130,1741201840167,-410.45433031,0.00010973,2]
[355489131,1741201840177,-501.79466079,0.00010973,2]
[355489132,1741201840187,-500.0,0.00010988,2]
[355489133,1741201840199,-500.0,0.00010988,2]
[355489134,1741201840211,-500.0,0.00010988,2]
[355489135,1741201840220,-500.0,0.00010988,2]
[355489136,1741201840230,-500.0,0.00010988,2]
[355489137,1741201840240,-500.0,0.00010988,2]
[355489138,1741201840253,-207.66592359,0.00010988,2]
[355489139,1741201840264,-500.0,0.00010988,2]
[355489141,1741201840273,-500.0,0.00010988,2]
[355489142,1741201840283,-533.44937514,0.00010988,2]
[355489143,1741201840293,-500.0,0.00010988,2]
[355489144,1741201840303,-500.0,0.00010988,2]
[355489145,1741201840314,-500.0,0.00010988,2]
[355489146,1741201840326,-500.0,0.00010988,2]
[355489148,1741201840338,-500.0,0.00010988,2]
[355489150,1741201840349,-500.0,0.00010988,2]
[355489151,1741201840359,-1085.29,0.00010988,2]
[355489152,1741201840368,-2043.06,0.00010988,2]
[355489153,1741201840378,-856.86,0.00010988,2]
[355489154,1741201840388,-676.91,0.00010988,2]
[355489155,1741201840398,-824.48,0.00010988,2]
[355489157,1741201840407,-1221.67,0.00010988,2]
[355489158,1741201840417,-500.0,0.00010988,2]
[355489159,1741201840426,-500.0,0.00010988,2]
[355489160,1741201840436,-8047.89,0.00010988,2]
[355489161,1741201840445,-733.29,0.00010988,2]
[355489162,1741201840455,-855.99,0.00010988,2]
[355489163,1741201840466,-460.32658529,0.00010988,2]
[355489164,1741201840476,-1805.56,0.00010988,2]
[355489165,1741201840485,-631.48,0.00010988,2]
[355489166,1741201840495,-500.0,0.00010988,2]
[355489167,1741201840504,-543.42,0.00010988,2]
[355489168,1741201840514,-502.55669372,0.00010988,2]
[355489169,1741201840524,-502.82320207,0.00010988,2]
[355489170,1741201840533,-516.05,0.00010988,2]
[355489171,1741201840542,-592.77212256,0.00010988,2]
[355489172,1741201840553,-618.47,0.00010988,2]
[355489173,1741201840562,-500.0,0.00010988,2]
[355489174,1741201840572,-5909.16,0.00010988,2]
[355489175,1741201840582,-734.94,0.00010988,2]
[355489176,1741201840591,-500.0,0.00010988,2]
[355489177,1741201840601,-703.806205,0.00010988,2]
[355489178,1741201840611,-500.0,0.00010988,2]
[355489179,1741201840621,-177.25825767,0.00010988,2]
[355489180,1741201840630,-500.0,0.00010988,2]
[355489181,1741201840639,-507.58723627,0.00010988,2]
[355489182,1741201840648,-879.4,0.00010988,2]
[355489183,1741201840659,-1193.08,0.00010988,2]
[355489184,1741201840668,-500.0,0.00010988,2]
[355489185,1741201840679,-500.0,0.00010988,2]
[355489186,1741201840688,-942.920262,0.00010988,2]
[355489187,1741201840698,-1250.69,0.00010988,2]
[355489188,1741201840711,-507.52760202,0.00010988,2]
[355489189,1741201840720,-500.0,0.00010988,2]
[355489190,1741201840730,-160.764672,0.00010988,2]
[355489191,1741201840739,-500.0,0.00010988,2]
[355489192,1741201840749,-1786.85,0.00010988,2]
[355489193,1741201840758,-151.463134,0.00010988,2]
[355489194,1741201840769,-961.21,0.00010988,2]
[355489195,1741201840782,-1849.39,0.00010988,2]
[355489196,1741201840791,-500.0,0.00010988,2]
[355489197,1741201840801,-501.61268735,0.00010988,2]
[355489198,1741201840811,-500.0,0.00010988,2]
[355489199,1741201840822,-3632.94,0.00010988,2]
[355489200,1741201840832,-500.0,0.00010988,2]
[355489201,1741201840843,-509.59759796,0.00010988,2]
[355489202,1741201840852,-1080.21,0.00010988,2]
[355489203,1741201840862,-500.0,0.00010988,2]
[355489204,1741201840872,-500.0,0.00010988,2]
[355489205,1741201840882,-3424.75,0.00010988,2]
[355489206,1741201840892,-546.21,0.00010988,2]
[355489207,1741201840902,-1102.55,0.00010988,2]
[355489208,1741201840912,-685.62,0.00010988,2]
[355489209,1741201840922,-500.0,0.00010988,2]
[355489210,1741201840932,-1111.84,0.00010988,2]
[355489211,1741201840941,-616.59,0.00010988,2]
[355489212,1741201840951,-1281.12,0.00010988,2]
[355489213,1741201840964,-1177.03,0.00010988,2]
[355489214,1741201840973,-500.0,0.00010988,2]
[355489215,1741201840983,-978.58,0.00010988,2]
[355489216,1741201840993,-654.98,0.00010988,2]
[355489217,1741201841002,-500.0,0.00010988,2]
[355489218,1741201841011,-500.0,0.00010988,2]
[355489219,1741201841021,-500.0,0.00010988,2]
[355489220,1741201841030,-508.0267577,0.00010988,2]
[355489221,1741201841040,-509.97144704,0.00010988,2]
[355489222,1741201841050,-500.0,0.00010988,2]
[355489223,1741201841059,-510.16364289,0.00010988,2]
[355489224,1741201841069,-500.0,0.00010988,2]
[355489225,1741201841078,-500.0,0.00010988,2]
[355489226,1741201841088,-500.0,0.00010988,2]
[355489227,1741201841098,-540.18,0.00010988,2]
[355489228,1741201841107,-500.0,0.00010988,2]
[355489229,1741201841117,-502.34874138,0.00010988,2]
[355489230,1741201841127,-1126.77,0.00010988,2]
[355489231,1741201841137,-500.0,0.00010988,2]
[355489232,1741201841146,-622.84603922,0.00010988,2]
[355489233,1741201841156,-1174.72,0.00010988,2]
[355489234,1741201841166,-504.67652525,0.00010988,2]
[355489235,1741201841175,-500.0,0.00010988,2]
[355489236,1741201841185,-500.0,0.00010988,2]
[355489237,1741201841194,-1597.38,0.00010988,2]
[355489238,1741201841204,-503.10022823,0.00010988,2]
[355489239,1741201841214,-851.89,0.00010988,2]
[355489240,1741201841224,-500.0,0.00010988,2]
[355489241,1741201841234,-500.0,0.00010988,2]
[355489242,1741201841243,-1061.75,0.00010988,2]
[355489243,1741201841252,-1372.2,0.00010988,2]
[355489244,1741201841262,-747.26,0.00010988,2]
[355489245,1741201841271,-502.75323829,0.00010988,2]
[355489246,1741201841281,-500.0,0.00010988,2]
[355489247,1741201841290,-500.0,0.00010988,2]
[355489248,1741201841300,-500.0,0.00010988,2]
[355489249,1741201841309,-500.0,0.00010988,2]
[355489250,1741201841321,-500.0,0.00010988,2]
[355489251,1741201841330,-2074.15,0.00010988,2]
[355489252,1741201841339,-500.0,0.00010988,2]
[355489253,1741201841349,-707.82,0.00010988,2]
[355489254,1741201841358,-790.12,0.00010988,2]
[355489255,1741201841368,-3960.97,0.00010988,2]
[355489256,1741201841377,-500.0,0.00010989,2]
[355489257,1741201841386,-563.99,0.00010989,2]
[355489258,1741201841395,-500.0,0.00010989,2]
[355489259,1741201841405,-500.0,0.00010989,2]
[355489260,1741201841414,-625.99,0.00010989,2]
[355489261,1741201841424,-659.07,0.00010989,2]
[355489262,1741201841433,-500.0,0.00010989,2]
[355489263,1741201841443,-502.23,0.00010989,2]
[355489264,1741201841452,-500.0,0.00010989,2]
[355489265,1741201841462,-500.0,0.00010989,2]
[355489266,1741201841472,-521.75,0.00010989,2]
[355489267,1741201841481,-500.0,0.00010989,2]
[355489268,1741201841490,-555.38,0.00010989,2]
[355489269,1741201841500,-500.0,0.00010989,2]
[355489270,1741201841509,-500.0,0.00010989,2]
[355489271,1741201841519,-611.25,0.00010989,2]
[355489272,1741201841528,-670.78,0.00010989,2]
[355489273,1741201841537,-500.0,0.00010989,2]
[355489274,1741201841547,-500.0,0.00010989,2]
[355489275,1741201841556,-500.0,0.00010989,2]
[355489276,1741201841566,-500.0,0.00010989,2]
[355489277,1741201841575,-500.0,0.00010989,2]
[355489278,1741201841585,-741.54,0.00010989,2]
[355489279,1741201841594,-500.0,0.00010989,2]
[355489280,1741201841604,-821.68,0.00010989,2]
[355489281,1741201841613,-500.0,0.00010989,2]
[355489282,1741201841623,-500.0,0.00010989,2]
[355489283,1741201841632,-500.0,0.00010989,2]
[355489284,1741201841642,-500.0,0.00010989,2]
[355489285,1741201841651,-668.49,0.00010989,2]
[355489286,1741201841660,-500.0,0.00010989,2]
[355489287,1741201841669,-500.0,0.00010989,2]
[355489288,1741201841679,-500.0,0.00010989,2]
[355489289,1741201841688,-500.16,0.00010989,2]
[355489290,1741201841697,-500.0,0.00010989,2]
[355489291,1741201841708,-500.0,0.00010989,2]
[355489292,1741201841717,-557.29,0.00010989,2]
[355489293,1741201841727,-745.68,0.00010989,2]
[355489294,1741201841736,-500.0,0.00010989,2]
[355489295,1741201841746,-500.0,0.00010989,2]
[355489296,1741201841755,-500.0,0.00010989,2]
[355489297,1741201841765,-500.0,0.00010989,2]
[355489298,1741201841779,-500.0,0.00010989,2]
[355489299,1741201841788,-884.09,0.00010989,2]
[355489300,1741201841797,-675.87,0.00010989,2]
[355489301,1741201841807,-500.0,0.00010989,2]
[355489302,1741201841816,-500.0,0.00010989,2]
[355489303,1741201841826,-500.0,0.00010989,2]
[355489304,1741201841835,-500.0,0.00010989,2]
[355489305,1741201841844,-500.0,0.00010989,2]
[355489306,1741201841855,-500.0,0.00010989,2]
[355489307,1741201841865,-673.29,0.00010989,2]
[355489308,1741201841874,-500.0,0.00010989,2]
[355489309,1741201841883,-877.18,0.00010989,2]
[355489310,1741201841893,-372.5619899,0.00010989,2]
[355489311,1741201841903,-500.0,0.00010989,2]
[355489312,1741201841913,-591.41,0.00010989,2]
[355489313,1741201841922,-500.0,0.00010989,2]
[355489314,1741201841932,-731.3,0.00010989,2]
[355489315,1741201841942,-500.81491136,0.00010989,2]
[355489316,1741201841951,-500.0,0.00010989,2]
[355489317,1741201841962,-646.83,0.00010989,2]
[355489318,1741201841971,-153.29101112,0.00010989,2]
[355489319,1741201841981,-500.0,0.00010989,2]
[355489320,1741201841991,-862.52,0.00010989,2]
[355489321,1741201842000,-749.91,0.00010989,2]
[355489322,1741201842010,-500.0,0.00010989,2]
[355489323,1741201842020,-500.0,0.00010989,2]
[355489324,1741201842029,-500.0,0.00010989,2]
[355489325,1741201842039,-500.0,0.00010989,2]
[355489326,1741201842048,-692.45,0.00010989,2]
[355489327,1741201842058,-500.0,0.00010989,2]
[355489328,1741201842070,-500.0,0.00010989,2]
[355489329,1741201842082,-500.0,0.00010989,2]
[355489330,1741201842092,-500.0,0.00010989,2]
[355489331,1741201842101,-500.0,0.00010989,2]
[355489332,1741201842111,-500.0,0.00010989,2]
[355489333,1741201842120,-500.0,0.00010989,2]
[355489334,1741201842130,-500.0,0.00010989,2]
[355489335,1741201842140,-500.0,0.00010989,2]
[355489336,1741201842149,-500.0,0.00010989,2]
[355489337,1741201842159,-500.0,0.00010989,2]
[355489338,1741201842172,-500.0,0.00010989,2]
[355489339,1741201842182,-500.0,0.00010989,2]
[355489340,1741201842191,-500.0,0.00010989,2]
[355489341,1741201842201,-718.27,0.00010989,2]
[355489342,1741201842210,-894.05,0.00010989,2]
[355489343,1741201842220,-500.0,0.00010989,2]
[355489344,1741201842229,-583.51,0.00010989,2]
[355489345,1741201842238,-500.0,0.00010989,2]
[355489346,1741201842248,-500.0,0.00010989,2]
[355489347,1741201842258,-500.0,0.00010989,2]
[355489349,1741201842503,-784.28,0.00010989,2]
[355489351,1741201842524,-500.0,0.00010989,2]
[355489352,1741201842533,-671.01,0.00010989,2]
[355489353,1741201842543,-500.0,0.00010989,2]
[355489354,1741201842552,-500.0,0.00010989,2]
[355489355,1741201842561,-626.83,0.00010989,2]
[355489356,1741201842571,-500.0,0.00010989,2]
[355489357,1741201842581,-843.79,0.00010989,2]
[355489358,1741201842590,-885.75,0.00010989,2]
[355489359,1741201842599,-500.0,0.00010989,2]
[355489360,1741201842608,-500.0,0.00010989,2]
[355489361,1741201842617,-500.0,0.00010989,2]
[355489363,1741201842627,-500.0,0.00010989,2]
[355489364,1741201842636,-673.95,0.00010989,2]
[355489365,1741201842645,-500.0,0.00010989,2]
[355489366,1741201842655,-500.0,0.00010989,2]
[355489369,1741201842664,-1473.71,0.00010989,2]
[355489372,1741201842673,-500.0,0.00010989,2]
[355489374,1741201842683,-500.0,0.00010989,2]
[355489377,1741201842692,-511.27007723,0.00010989,2]
[355489379,1741201842701,-500.0,0.00010989,2]
[355489380,1741201842712,-738.1,0.00010989,2]
[355489381,1741201842721,-502.65,0.00010989,2]
[355489383,1741201842731,-500.0,0.00010989,2]
[355489385,1741201842740,-500.0,0.00010989,2]
[355489389,1741201842749,-688.31,0.00010989,2]
[355489392,1741201842758,-1111.1,0.00010989,2]
[355489394,1741201842769,-500.0,0.00010989,2]
[355489396,1741201842781,-877.03,0.00010989,2]
[355489398,1741201842791,-916.05,0.00010989,2]
[355489400,1741201842800,-959.79,0.00010989,2]
[355489402,1741201842810,-773.53,0.00010989,2]
[355489404,1741201842819,-500.0,0.00010989,2]
[355489405,1741201842829,-500.0,0.00010989,2]
[355489406,1741201842839,-739.18,0.00010989,2]
[355489407,1741201842848,-500.0,0.00010989,2]
[355489408,1741201842859,-500.0,0.00010989,2]
[355489409,1741201842869,-7053.56,0.00010989,2]
[355489410,1741201842880,-500.0,0.00010989,2]
[355489411,1741201842890,-500.0,0.00010989,2]
[355489412,1741201842899,-2345.3,0.00010989,2]
[355489413,1741201842909,-500.0,0.00010989,2]
[355489414,1741201842918,-1064.2,0.00010989,2]
[355489415,1741201842928,-500.0,0.00010989,2]
[355489416,1741201842938,-827.46,0.00010989,2]
[355489417,1741201842948,-699.47,0.00010989,2]
[355489418,1741201842958,-500.0,0.00010989,2]
[355489419,1741201842968,-2103.57,0.00010989,2]
[355489420,1741201842977,-868.55,0.00010989,2]
[355489421,1741201842987,-500.0,0.00010989,2]
[355489422,1741201842996,-500.0,0.00010989,2]
[355489423,1741201843005,-542.49,0.00010989,2]
[355489424,1741201843015,-1070.88,0.00010989,2]
[355489425,1741201843025,-500.0,0.00010989,2]
[355489426,1741201843036,-975.65,0.00010989,2]
[355489427,1741201843045,-500.0,0.00010989,2]
[355489428,1741201843055,-645.49,0.00010989,2]
[355489429,1741201843064,-1246.73,0.00010989,2]
[355489430,1741201843073,-500.0,0.00010989,2]
[355489431,1741201843084,-1375.44,0.00010989,2]
[355489432,1741201843095,-505.6269873,0.00010989,2]
[355489433,1741201843105,-574.93,0.00010989,2]
[355489434,1741201843116,-835.72,0.00010989,2]
[355489435,1741201843127,-500.0,0.00010989,2]
[355489436,1741201843136,-629.67,0.00010989,2]
[355489438,1741201843147,-950.66,0.00010989,2]
[355489439,1741201843157,-551.25,0.00010989,2]
[355489440,1741201843168,-500.0,0.00010989,2]
[355489441,1741201843178,-578.85,0.00010989,2]
[355489442,1741201843188,-500.0,0.00010989,2]
[355489443,1741201843198,-1145.03,0.00010989,2]
[355489445,1741201843208,-3018.19,0.00010989,2]
[355489447,1741201843217,-500.0,0.00010989,2]
[355489448,1741201843226,-500.0,0.00010989,2]
[355489449,1741201843236,-500.0,0.00010989,2]
[355489450,1741201843245,-500.0,0.00010989,2]
[355489451,1741201843255,-500.0,0.00010989,2]
[355489453,1741201843264,-953.47,0.00010989,2]
[355489455,1741201843274,-1455.0,0.00010989,2]
[355489456,1741201843285,-2040.24,0.00010989,2]
[355489457,1741201843295,-500.0,0.00010989,2]
[355489458,1741201843306,-6538.76,0.00010989,2]
[355489459,1741201843315,-527.47,0.00010989,2]
[355489460,1741201843324,-1258.16,0.00010989,2]
[355489461,1741201843334,-1015.49,0.00010989,2]
[355489462,1741201843343,-226.01749472,0.00010989,2]
[355489463,1741201843352,-500.0,0.00010989,2]
[355489464,1741201843362,-532.85,0.00010989,2]
[355489466,1741201843371,-500.0,0.00010989,2]
[355489467,1741201843381,-2742.6,0.00010989,2]
[355489468,1741201843390,-228.40977697,0.00010989,2]
[355489469,1741201843400,-3439.0,0.00010989,2]
[355489470,1741201843410,-500.0,0.00010989,2]
[355489471,1741201843419,-557.93,0.00010989,2]
[355489472,1741201843429,-500.0,0.00010989,2]
[355489473,1741201843438,-500.0,0.00010989,2]
[355489474,1741201843448,-498.06197601,0.00010989,2]
[355489475,1741201843458,-500.0,0.00010989,2]
[355489476,1741201843467,-3875.3,0.00010989,2]
[355489477,1741201843476,-500.0,0.00010989,2]
[355489478,1741201843485,-500.0,0.00010989,2]
[355489479,1741201843494,-647.71,0.00010989,2]
[355489480,1741201843503,-500.0,0.00010989,2]
[355489481,1741201843513,-506.61749782,0.00010989,2]
[355489482,1741201843523,-657.74,0.00010989,2]
[355489483,1741201843532,-1306.19,0.00010989,2]
[355489484,1741201843541,-500.0,0.00010989,2]
[355489485,1741201843551,-500.0,0.00010989,2]
[355489486,1741201843560,-500.0,0.00010989,2]
[355489487,1741201843570,-3378.98,0.00010989,2]
[355489488,1741201843579,-875.59,0.00010989,2]
[355489489,1741201843588,-500.0,0.00010989,2]
[355489490,1741201843597,-1283.44,0.00010989,2]
[355489491,1741201843607,-1013.45,0.00010989,2]
[355489492,1741201843615,-731.22,0.00010989,2]
[355489493,1741201843625,-500.0,0.00010989,2]
[355489494,1741201843634,-500.0,0.00010989,2]
[355489495,1741201843643,-1728.12,0.00010989,2]